Cogmind - Beta 17 @@@ ROGUE MODE // 2026.08.13 @ 00:44:50 Player: 4R-ZE3 Result: Destroyed by G-34 Mercenary with Small Laser Performance ------------- Evolutions (0) 0 Regions Visited (1) 200 Robots Destroyed (16) 80 Value Destroyed (487) 487 Prototype IDs (0) 0 Alien Tech Used (0) 0 Bonus (0) 0 TOTAL SCORE: 767 Bonus ------- None Cogmind --------- Core Integrity 0/250 Matter 299/300 Energy 100/100 System Corruption 0% Temperature Cool (27) Movement Walking (120) Location -10/Materials Parts ------- > --- POWER (1) -------- (None) > --- PROPULSION (2) --- Aluminum Leg Aluminum Leg > --- UTILITY (2) ------ Improved Heat Sink Small Storage Unit > --- WEAPON (2) ------- Light Assault Rifle > --- INVENTORY (8) ---- Wheel Wheel Signal Interpreter Hacking Suite Small Laser Mini Grenade Launcher Peak State ------------ > --- POWER ------------ Light Ion Engine > --- PROPULSION ------- Light Treads Light Treads > --- UTILITY ---------- Improved Heat Sink Small Storage Unit > --- WEAPON ----------- Small Laser Light Assault Rifle > --- INVENTORY -------- Wheel Wheel Signal Interpreter Small Laser Light Assault Rifle Mini Grenade Launcher [Rating: 9] Favorites ----------- Power Light Ion Engine Engine Light Ion Engine Propulsion Light Treads Treads Light Treads Leg Aluminum Leg Utility Small Storage Unit Device Improved Heat Sink Storage Small Storage Unit Weapon Small Laser Energy Gun Small Laser Ballistic Gun Light Assault Rifle Build | -11 -10 ------- Run | Yrd Mat Slots Evolved . | . . Power . | . . Propulsion . | . . Utility . | . . Weapon . | . . Parts Attached 13 | 5 8 Power 3 | . 3 Engine 3 | . 3 Core . | . . Reactor . | . . Propulsion 4 | 2 2 Treads 2 | 2 . Leg 2 | . 2 Wheel . | . . Hover . | . . Flight . | . . Utility 2 | 1 1 Device 1 | . 1 Storage 1 | 1 . Processor . | . . Hackware . | . . Protection . | . . Artifact . | . . Weapon 4 | 2 2 Energy Gun 2 | 1 1 Energy Cannon . | . . Ballistic Gun 2 | 1 1 Ballistic Cannon . | . . Launcher . | . . Special Weapon . | . . Impact Weapon . | . . Slashing Weapon . | . . Piercing Weapon . | . . Special Melee Weapon . | . . Unidentified Prototypes . | . . Parts Lost 8 | . 8 Power 3 | . 3 Propulsion 2 | . 2 Utility . | . . Weapon 3 | . 3 Highest Loss Streak 3 | . 3 To Critical Strikes . | . . Average Backups 5 | 2 5 Power . | 1 . Propulsion 1 | 1 2 Utility . | . . Weapon 1 | . 2 Tool/Special . | . . Unused Backups 5 | . 5 Power . | . . Propulsion 2 | . 2 Utility 1 | . 1 Weapon 2 | . 2 Tool/Special . | . . Average Slot Usage (%) 83 | . 83 Engine 7 | . 7 Treads 19 | . 19 Leg 7 | . 7 Device 6 | . 6 Storage 14 | . 14 Energy Gun 14 | . 14 Ballistic Gun 13 | . 13 Peak Build Rating 9 | 5 9 Average Rating 6 | 4 6 On Entrance 2 | . 5 Avg Prop Armor Cover (%) 12 | . 12 Naked Turns . | . . Heaviest Build 12 | 7 12 Greatest Support 40 | 40 40 Greatest Overweight (x) 1 | . 1 Average Overweight (x) . | . . Largest Inventory Capacity 8 | 8 8 Average Capacity 7 | 7 8 Most Carried 7 | 5 7 Average Carried 5 | 3 5 Final Capacity 8 | 8 8 Final Carried 6 | 5 6 Class Distribution -------------------- 86% | Mutant 13% | Scavenger-Mutant Dominant Class ---------------- Mutant | -10/Materials Resources | -11 -10 ----------- Run | Yrd Mat Matter Collected 363 | 198 165 Remotely . | . . Salvage Created 578 | . 578 Parts 29 | . 29 Haulers Intercepted 1 | . 1 Recyclers Shooed . | . . Parts Field Recycled . | . . Retrieved Matter . | . . Parts Self-Destructed . | . . Prevented . | . . Parts Restored . | . . Kills | -11 -10 ------- Run | Yrd Mat Combat Hostiles Destroyed 13 | . 13 Guns 13 | . 13 Classes Destroyed 4 | . 4 Worker 1 | . 1 Hauler 1 | . 1 Operator 1 | . 1 Grunt 13 | . 13 Best Kill Streak 5 | . 5 Combat Bots Only 3 | . 3 Max Kills in Single Turn 1 | . 1 Gunslinging . | . . Exploded . | . . Melee . | . . Uniques/NPCs Destroyed . | . . Combat | -11 -10 -------- Run | Yrd Mat Hostile Shots Fired 130 | . 130 Missed 36 | . 36 Hits 94 | . 94 Projectile 94 | . 94 Critical Strikes 3 | . 3 Damage Taken 1134 | . 1134 Core 254 | . 254 Absorbed by Shields . | . . Core Remaining (%) 100 | 100 . Volleys Fired 62 | 1 61 Largest 2 | 2 2 Hottest 80 | 60 80 Shots Fired 123 | 2 121 Gun 123 | 2 121 Cannon . | . . Launcher . | . . Special . | . . Kinetic 54 | 1 53 Thermal 69 | 1 68 Explosive . | . . Electromagnetic . | . . Robot Hit Streak 13 | 1 13 Robot Miss Streak 5 | 1 5 Penetration Max . | . . Secondary Targets 1 | . 1 Max Gunslinging Chain 1 | . 1 Shots Hit Robots 84 | 1 83 Core Hits 36 | . 36 Critical Kills . | . . Critical Parts Destroyed . | . . Critical Strikes . | . . Melee Attacks . | . . Impact . | . . Slashing . | . . Piercing . | . . Sneak Attacks . | . . Combat Hostiles . | . . Follow-up Attacks . | . . Damage Inflicted 811 | 8 803 Guns 811 | 8 803 Cannons . | . . Explosions . | . . Melee . | . . Ramming . | . . Kinetic 305 | 8 297 Thermal 506 | . 506 Explosive . | . . Electromagnetic . | . . Impact . | . . Slashing . | . . Piercing . | . . Highest Corruption . | . . Average Corruption . | . . Corruption Purged . | . . Corruption Blocked . | . . Overload Shots . | . . Overflow Damage . | . . Projectiles . | . . Explosions . | . . Melee . | . . Knockbacks . | . . Impact . | . . Kinetic . | . . Secondary . | . . Self-Inflicted Damage . | . . Shots . | . . Rammed . | . . Targets Rammed . | . . Kicked . | . . Crushed . | . . Highest Temperature 165 | 10 165 Average Temperature 52 | 7 53 Received Heat Transfer 690 | . 690 Siege Activations . | . . Martial Activations . | . . Shielding Activations . | . . Robots Disrupted . | . . Combat Hostiles . | . . Robots Corrupted . | . . Combat Hostiles . | . . Parts Fried . | . . Impact Corruptions . | . . Robots Melted . | . . Combat Hostiles . | . . Parts Melted . | . . Heat Transferred 1150 | . 1150 Parts Sabotaged . | . . Parts Stolen . | . . Parts Stripped . | . . Power Chain Reactions . | . . Alert | -11 -10 ------- Run | Yrd Mat Maximum Alert Level . | . . Low Security (%) 100 | 100 100 Level 1 . | . . Level 2 . | . . Level 3 . | . . Level 4 . | . . Level 5 . | . . High Security . | . . Max Security . | . . Peak Influence 71 | . 71 Initial . | . . Average 30 | . 33 Influence Increases 394 | . 394 Destroy 0b10 Robot/C 260 | . 260 Destroy 0b10 Robot/NC 15 | . 15 Destroy Leader 72 | . 72 Successful Hack 17 | . 17 Select Force Hacks 30 | . 30 Influence Decreases 382 | . 382 Time Decay 304 | . 304 Lost Part 78 | . 78 Squads Dispatched 6 | . 6 Investigation 4 | . 4 Extermination . | . . Reinforcement 2 | . 2 Assault . | . . Garrison . | . . Intercept . | . . Searches Triggered . | . . Construction Impeded . | . . Haulers Reinforced . | . . Active Scanning Responses . | . . Cargo Convoy Interrupts . | . . Stealth | -11 -10 --------- Run | Yrd Mat Distress Signals . | . . Communications Jammed . | . . Distress Signals . | . . Times Spotted 23 | . 23 Peak Tracking Total 5 | . 5 Tactical Retreats . | . . Traps | -11 -10 ------- Run | Yrd Mat Traps Triggered 2 | . 2 Indirectly . | . . Trap Hack Attempts . | . . Triggered . | . . Disarmed . | . . Reprogrammed . | . . Reused . | . . Traps Extracted . | . . Installed . | . . Triggered . | . . Machines | -11 -10 ---------- Run | Yrd Mat Machines Disabled . | . . Max in Single Turn . | . . Machines Repaired . | . . Machines Dismantled . | . . Machines Sabotaged . | . . Overloaded Fab Kills . | . . Hacking | -11 -10 --------- Run | Yrd Mat Machines Accessed 5 | . 5 Terminals 4 | . 4 Fabricators . | . . Repair Stations . | . . Recycling Units 1 | . 1 Scanalyzers . | . . Garrison Access . | . . Total Hacks 11 | . 11 Successful 5 | . 5 Failed 6 | . 6 Catastrophic 1 | . 1 Database Lockouts . | . . Manual 12 | . 12 Terminals 10 | . 10 Fabricators . | . . Repair Stations . | . . Recycling Units 1 | . 1 Scanalyzers . | . . Garrison Access . | . . Terminal Hacks 1 | . 1 Robot Analysis 1 | . 1 Fabricator Hacks . | . . Repair Station Hacks . | . . Recycling Unit Hacks . | . . Scanalyzer . | . . Garrison Access Hacks . | . . Unauthorized Hacks 4 | . 4 Terminals 3 | . 3 Botnet 3 | . 3 Fabricators . | . . Repair Stations . | . . Recycling Units 1 | . 1 Tunnel 1 | . 1 Scanalyzers . | . . Garrison Access . | . . Data Cores Recovered . | . . Used . | . . Hacking Detections 4 | . 4 Full Trace Events 1 | . 1 Feedback Events . | . . Feedback Blocked . | . . Robot Schematics Acquired . | . . Robots Built . | . . Authchips . | . . Time . | . . Total Robot Build Rating . | . . Part Schematics Acquired . | . . Parts Built . | . . Authchips . | . . Time . | . . Total Part Build Rating . | . . Part Studies Acquired . | . . Parts Repaired . | . . Time . | . . Parts Recycled . | . . Recycled Matter . | . . Retrieved Matter . | . . Retrieved Components . | . . Parts Scanalyzed . | . . Part Schematics Acquired . | . . Parts Damaged . | . . Bothacking | -11 -10 ------------ Run | Yrd Mat Used RIF Installer . | . . Robots Hacked . | . . Non-combat . | . . Combat . | . . Robot Hacks Applied . | . . Relay Couplers Released . | . . Fabnet Peak Effective % . | . . Robots Rewired . | . . Allies Hacked . | . . Hacks Repelled . | . . Allies | -11 -10 -------- Run | Yrd Mat Total Allies . | . . Largest Group . | . . Highest-Rated Group . | . . Highest-Rated Ally . | . . Total Orders . | . . Ally Attacks . | . . Total Damage . | . . Kills . | . . Allies Corrupted . | . . Allies Melted . | . . Intel | -11 -10 ------- Run | Yrd Mat Active Infowar (turns) . | . . Robot Analysis Total 1 | . 1 Derelict Logs Recovered . | . . Drone Launches . | . . Drone Recoveries . | . . Exploration | -11 -10 ------------- Run | Yrd Mat Turns Passed 908 | 72 836 Spaces Moved 442 | 37 405 Core 4 | 4 . Treads 293 | 33 260 Legs 145 | . 145 Wheels . | . . Hover . | . . Flight . | . . Fastest Speed 50 | 50 120 Average Speed 152 | 148 152 Slowest Speed 190 | 160 190 Overloaded Moves . | . . Propulsion Burnouts . | . . Robots Hopped . | . . Potential Cave-ins . | . . Cave-ins Triggered . | . . Exploration Rate (%) 40 | 4 76 Regions Visited 1 Branch Regions . Pre-discovered Areas 1 | . 1 Known Exits Taken . | . . Unknown Exits Taken 1 | 1 . Scrap Searched . | . . Spaces Dug . | . . Terrain Destroyed . | . . Melee . | . . Projectile . | . . AOE . | . . Terrain Rammed . | . . Walls Destroyed . | . . Machines Disabled . | . . Actions | -11 -10 --------- Run | Yrd Mat Total 562 | 50 512 Wait 36 | 3 33 Move 441 | 36 405 Hop . | . . Pick Up 10 | 5 5 Fast Attach 9 | 5 4 Attach 4 | . 4 Detach . | . . Swap . | . . Drop . | . . Fire 62 | 1 61 Melee . | . . Ram . | . . Kick . | . . Crush . | . . Escape Stasis . | . . Rewire . | . . Trap . | . . Miscellaneous . | . . Route ------- -11/Scrapyard -10/Materials (discovered 4 exits: [*Mat x3] / [*Min]) History --------- Turn | Location | Event 48 | -11/Scrapyard | Discovered new exit (range 14) 73 | -11/Scrapyard | Entered Materials 74 | -10/Materials | Met a group of wandering Federalists 155 | -10/Materials | Lost 3 allies 302 | -10/Materials | Build established: Mutant 345 | -10/Materials | Discovered new exit (range 8) 621 | -10/Materials | Discovered new exit (range 5) 694 | -10/Materials | Discovered new exit (range 6) 753 | -10/Materials | Lost 3 parts (1p1n1w) 755 | -10/Materials | Core integrity fell below 50% 887 | -10/Materials | Discovered new exit (range 15) 902 | -10/Materials | Core integrity fell below 20% 909 | -10/Materials | Destroyed by G-34 Mercenary with Small Laser Last Messages --------------- 00838_ T-07 Excavator is excavating. 00839_ Connecting with Terminal... 00841_ U-05 Engineer lays Concrete. 00842_ U-05 Engineer builds a Wall. 00842_ T-07 Excavator is excavating. 00854_ K-01 Serf collects debris. 00858_ U-05 Engineer lays Concrete. 00875_ O-16 Technician destroyed. 00878_ Acquired 1 matter. 00880_ Acquired Hacking Suite. 00887_ EXIT=FOUND 00890_ Triggered Alarm Trap. 00890_ An alarm sounds. 00890_ ALERT: Alarm triggered, dispatching investigation squad. 00905_ Critical hit (Burn: +37). 00905_ Lgt. Ion Engine destroyed. 00906_ U-05 Engineer lays Concrete. 00907_ Sml. Laser destroyed. 00907_ U-05 Engineer lays Concrete. Map ----- +----------------------------------------------------+ | ????????????????????# # # | | ????????????????????# # + | | #######?????????????####### # | | #?????????##########" # | | ####??????# #" # | | ## ##????# #" ######## | | ## #????# ## """""T""#####??????? | | # #????# ## ###"""""#??????????? | | # #????# ## #?#######??????????? | | #####+## #T###### ## ##??###????????????? | | + # ####T##########???? | | ########+######## # #???? | | # * #?????# # " #???? | | # #?????#+####+### #???? | | # """ """ #?????# ## =%# ###############???? | | # """ """ ####### ## #######?????????????????? | | / """ """ + T #???????????????????????? | | # ########## #???????????????????????? | | # #????????# !#???????????????????????? | | # #????????## ##???????????????????????? | | #####+#####?????????# #????????????????????????? | | #???# #?????????????# #????????????????????????? | | #???# #?????????????# #????????????????????????? | | #####+##???????????## ##???????????????????????? | | # % #???????????# ##+######???????????????? | | # """ #???????????# @g #???????????????? | | #! "T" #???????????# g #???????????????? | | +%! #???????????# #???????????????? | | #[ #???????????# ##### #???????????????? | | # #???????????## g##????? #???????????????? | | #########???????????# g #???????? ??????????????? | | ??????? k #????????? ????????????? | | ######????????????? #??????????? ???????????? | | #????????????????? #????????????????????????? | | ?????????????????+### +????????????????????????? | | ????????????????????# #????????????????????????? | | ????????????????????# < ?????????????????????????? | | ????????????????????# ?????????????????????????? | | ????????????????????####?????????????????????????? | | ?????????????????????????????????????????????????? | | ?????????????????????????????????????????????????? | | ?????????????????????????????????????????????????? | | ?????????????????????????????????????????????????? | | ?????????????????????????????????????????????????? | | ?????????????????????????????????????????????????? | | ?????????????????????????????????????????????????? | | | | | | | | | +----------------------------------------------------+ Best States ------------- Heat Dissipation 39 Energy Generation 10 Energy Capacity 250 Matter Stores 300 Matter Capacity 300 Sight Range 16 Terrain Scan Density 10 Evasion (%) 55 Recoil Reduction 2 Item Schematics ----------------- None Robot Schematics ------------------ None Fabricated ------------ Nothing Repaired ---------- Nothing Studied --------- None Alien Tech Used ----------------- None Achievements -------------- None Challenges ------------ None Game ------ Seed PowerGlidesysHammer Manual? 0 Play Time 00:05:27 Cumulative 230.0 hours Start 2026.08.13 @ 00:40:19 End 2026.08.13 @ 00:44:50 Sessions 1 Manual Loads 0 Difficulty Rogue Special Mode None Game No. 232 Rogue 178 Adventurer 54 Explorer 0 Win Type - Total 10 Types 6/0/1/1/0/0/0/1/0/1 Lore% 74 Gallery% 62 Achievement% 58 Wizard Run 0 Options --------- Layout 1 ASCII 0 Keyboard 0 Movement Mouse Keybinds 1 Fullscreen 2 Font 32/Tamsyn Map View 50x35 Zoom Use 0% Tactical HUD 1 Map Filters NONE Filters NONE Steam 1 RUN: c7362924-4d15-4e81-90e1-239ca0d9a9a9